lending/lending_fUSD_20241115
["ID","MTS","AMOUNT","RATE_DAILY","PERIOD"]
[342243288,1731636638482,-166.6,9.938e-05,2]
[342243289,1731636638491,-500.0,9.973e-05,2]
[342243290,1731636638500,-1371.97,9.999e-05,2]
[342243291,1731636638510,-31776.97864844,0.0001,2]
[342243297,1731636640548,-1820.28316558,0.0001,2]
[342243298,1731636640560,-443.11349648,0.0001,2]
[342243299,1731636640572,-998.45,0.0001,2]
[342243300,1731636640583,-23953.4624582,0.0001,2]
[342243303,1731636643394,-1233.51498052,9.999e-05,3]
[342243304,1731636643404,-1761.57212054,0.0001,2]
[342243316,1731636646285,-833.7559852,0.0001,2]
[342243317,1731636646296,-9200.0999998,0.0001,2]
[342243318,1731636646308,-540.71569304,0.0001,2]
[342243348,1731637809022,-175.28,0.0002018,60]
[342243349,1731637809054,-1411.03836997,0.00022,60]
[342243350,1731637809079,-210.53717626,0.00022,120]
[342243351,1731637809106,-500.0,0.00022499,120]
[342243352,1731637809139,-290.209644,0.00023999,120]
[342243353,1731637809168,-200.0,0.00024749,120]
[342243354,1731637809191,-2000.0,0.00024774,120]
[342243355,1731637809216,-500.0,0.00024999,120]
[342243356,1731637809246,-300.0,0.00025,120]
[342243357,1731637809270,-1019.40994538,0.00025,60]
[342243358,1731637809294,-1500.0,0.00025,120]
[342243359,1731637809319,-268.92688952,0.00025,120]
[342243360,1731637809343,-639.11217343,0.00025,120]
[342243367,1731637832182,-1616.03,8.219e-05,2]
[342243368,1731637832201,-1000.0,8.565e-05,2]
[342243369,1731637832222,-250.0,8.598e-05,2]
[342243370,1731637832242,-10542.15,8.6e-05,2]
[342243371,1731637832261,-200.0,8.6e-05,2]
[342243372,1731637832277,-195.01,8.604e-05,2]
[342243373,1731637832286,-295.45,8.606e-05,2]
[342243374,1731637832296,-250.0,8.608e-05,2]
[342243375,1731637832304,-468.28,8.608e-05,2]
[342243376,1731637832314,-250.0,8.688e-05,2]
[342243377,1731637832323,-3790.0,8.953e-05,2]
[342243378,1731637832332,-157.71,9.308e-05,2]
[342243379,1731637832342,-157.71,9.31e-05,2]
[342243380,1731637832351,-157.71,9.313e-05,2]
[342243381,1731637832359,-157.71,9.316e-05,2]
[342243382,1731637832368,-157.71,9.319e-05,2]
[342243383,1731637832377,-157.71,9.322e-05,2]
[342243384,1731637832388,-157.71,9.325e-05,2]
[342243385,1731637832396,-157.71,9.328e-05,2]
[342243386,1731637832405,-157.71,9.331e-05,2]
[342243387,1731637832414,-157.71,9.334e-05,2]
[342243388,1731637832423,-157.71,9.337e-05,2]
[342243389,1731637832432,-157.71,9.339e-05,2]
[342243390,1731637832441,-157.71,9.342e-05,2]
[342243391,1731637832450,-157.71,9.345e-05,2]
[342243392,1731637832460,-150.0,9.348e-05,2]
[342243393,1731637832469,-157.71,9.348e-05,2]
[342243394,1731637832478,-157.71,9.351e-05,2]
[342243395,1731637832487,-3633.363,9.351e-05,2]
[342243396,1731637832497,-157.71,9.354e-05,2]
[342243397,1731637832507,-400.0,9.403e-05,2]
[342243398,1731637832516,-400.0,9.403e-05,2]
[342243399,1731637832526,-400.0,9.403e-05,2]
[342243400,1731637832535,-400.0,9.403e-05,2]
[342243401,1731637832544,-499.0,9.49e-05,2]
[342243402,1731637832554,-212.0,9.49e-05,2]
[342243403,1731637832563,-400.0,9.499e-05,2]
[342243404,1731637832571,-400.0,9.499e-05,2]
[342243405,1731637832580,-400.0,9.499e-05,2]
[342243406,1731637832590,-400.0,9.499e-05,2]
[342243407,1731637832599,-400.0,9.527e-05,2]
[342243408,1731637832607,-400.0,9.527e-05,2]
[342243409,1731637832616,-400.0,9.527e-05,2]
[342243410,1731637832626,-400.0,9.527e-05,2]
[342243411,1731637832638,-400.0,9.583e-05,2]
[342243412,1731637832653,-400.0,9.583e-05,2]
[342243413,1731637832662,-400.62708232,9.583e-05,2]
[342243414,1731637832671,-400.0,9.583e-05,2]
[342243415,1731637832680,-1000.0,9.621e-05,2]
[342243416,1731637832690,-1000.0,9.621e-05,2]
[342243417,1731637832699,-1000.0,9.621e-05,2]
[342243418,1731637832709,-1000.0,9.621e-05,2]
[342243419,1731637832718,-1000.0,9.621e-05,2]
[342243420,1731637832728,-1000.0,9.621e-05,2]
[342243421,1731637832737,-1000.0,9.621e-05,2]
[342243422,1731637832746,-1000.0,9.621e-05,2]
[342243423,1731637832755,-1000.0,9.621e-05,2]
[342243424,1731637832765,-1000.0,9.621e-05,2]
[342243425,1731637832774,-1000.0,9.621e-05,2]
[342243426,1731637832783,-1000.0,9.621e-05,2]
[342243427,1731637832792,-1036.0,9.621e-05,2]
[342243428,1731637832801,-166.48,9.621e-05,2]
[342243429,1731637832810,-1000.0,9.636e-05,2]
[342243430,1731637832820,-1000.0,9.67e-05,2]
[342243431,1731637832829,-1000.0,9.67e-05,2]
[342243432,1731637832838,-1000.0,9.67e-05,2]
[342243433,1731637832847,-1000.0,9.67e-05,2]
[342243434,1731637832856,-1000.0,9.67e-05,2]
[342243435,1731637832865,-2333.01,9.67e-05,2]
[342243436,1731637832874,-372.69,9.67e-05,2]
[342243437,1731637832883,-468.28,9.684e-05,2]
[342243438,1731637832894,-400.0,9.749e-05,2]
[342243439,1731637832903,-400.0,9.749e-05,2]
[342243440,1731637832911,-400.0,9.749e-05,2]
[342243441,1731637832921,-1000.0,9.749e-05,2]
[342243442,1731637832930,-588.29469583,9.8e-05,2]
[342243443,1731637832939,-499.0,9.86e-05,2]
[342243444,1731637832948,-212.0,9.86e-05,2]
[342243445,1731637832957,-400.0,9.876e-05,2]
[342243446,1731637832966,-400.0,9.876e-05,2]
[342243447,1731637832975,-400.0,9.876e-05,2]
[342243448,1731637832984,-78681.2507,9.9e-05,2]
[342243449,1731637832993,-9249.0679,9.9e-05,2]
[342243450,1731637833002,-847.6028,9.9e-05,2]
[342243451,1731637833011,-330.7509,9.9e-05,2]
[342243452,1731637833020,-1307.7749,9.9e-05,2]
[342243453,1731637833030,-421.4341,9.9e-05,2]
[342243454,1731637833039,-400.0,9.919e-05,2]
[342243455,1731637833048,-400.0,9.919e-05,2]
[342243456,1731637833058,-400.0,9.919e-05,2]
[342243457,1731637833067,-500.0,9.92e-05,2]
[342243458,1731637833076,-631.907,9.921e-05,2]
[342243459,1731637833085,-400.0,9.972e-05,2]
[342243460,1731637833094,-400.0,9.972e-05,2]
[342243461,1731637833104,-351.9178456,9.972e-05,2]
[342243462,1731637833113,-500.28761979,9.973e-05,2]
[342243463,1731637833123,-500.0,9.973e-05,2]
[342243464,1731637833132,-160.54247077,9.973e-05,2]
[342243465,1731637833146,-151.43814665,9.973e-05,2]
[342243466,1731637833155,-503.75672193,9.973e-05,2]
[342243467,1731637833165,-8347.26122902,9.98e-05,2]
[342243468,1731637833174,-645.2976351,9.992e-05,2]
[342243469,1731637833184,-197.7453469,9.992e-05,2]
[342243470,1731637833193,-1552.7720216,9.992e-05,2]
[342243471,1731637833202,-761.59157278,9.992e-05,2]
[342243472,1731637833211,-681.5661883,9.993e-05,2]
[342243473,1731637833221,-717.8347415,9.993e-05,2]
[342243474,1731637833231,-754.1032947,9.993e-05,2]
[342243475,1731637833243,-208.8595014,9.993e-05,2]
[342243476,1731637833252,-219.973656,9.993e-05,2]
[342243477,1731637833261,-231.0878105,9.993e-05,2]
[342243478,1731637833271,-1652.8764139,9.993e-05,2]
[342243479,1731637833280,-1752.9808062,9.993e-05,2]
[342243480,1731637833289,-1853.0851985,9.993e-05,2]
[342243481,1731637833299,-475.45899103,9.999e-05,2]
[342243482,1731637833308,-1379.4,9.999e-05,2]
[342243483,1731637833318,-1296.73930292,9.999e-05,2]
[342243484,1731637833327,-605803.38640387,0.0001,2]
[342243493,1731637838585,-316.97266069,9.999e-05,2]
[342243496,1731637838595,-3502.60558145,0.0001,2]
[342243497,1731637838606,-10362.67042918,0.0001,2]
[342243499,1731637840477,-11593.81258389,0.0001,2]
[342243503,1731637841637,1832.3543825,0.00025,60]
[342243504,1731637843151,-2993.05280913,0.0001,2]
[342243505,1731637843163,-2894.09257743,0.0001,2]
[342243506,1731637843174,-6719.30685528,0.0001,2]
[342243507,1731637843186,-2996.83919807,0.0001,2]
[342243508,1731637843423,-36067.75265786,0.0001,2]
[342243509,1731637843436,-4838.34086895,0.0001,2]
[342243510,1731637843447,-3607.77123279,0.0001,2]
[342243539,1731637846416,-211.31510713,9.999e-05,2]
[342243540,1731637846425,-772.55027014,0.0001,2]
[342243541,1731637846436,-4407.9312274,0.0001,2]
[342243552,1731637956394,658.435884,0.00025,120]
[342243553,1731638194988,250.0,0.00025,60]
[342243554,1731638210936,250.0,0.00025,60]
[342243555,1731638358602,150.0,0.00015014,15]
[342243556,1731638599189,500.0,0.0002496,120]
[342243557,1731638612015,2000.0,0.00024901,120]
[342243558,1731638629345,500.0,0.00023001,120]
[342243560,1731638646201,5000.0,0.00015014,15]
[342243561,1731638652614,200.0,0.00024796,120]
[342243562,1731638690050,45000.0,0.00015014,15]
[342243563,1731638703559,50000.0,0.00015014,15]
[342243564,1731638733240,50000.0,0.00015014,15]
[342243565,1731638740245,50000.0,0.00015014,15]
[342243566,1731638747024,50000.0,0.00015014,15]
[342243567,1731638750979,50000.0,0.00015014,15]
[342243568,1731638755716,50000.0,0.00015014,15]
[342243569,1731638794412,50000.0,0.00015014,15]
[342243570,1731638796122,50000.0,0.00015014,15]
[342243571,1731638797266,50000.0,0.00015014,15]
[342243572,1731638798474,50000.0,0.00015014,15]
[342243573,1731638799706,50000.0,0.00015014,15]
[342243574,1731638800919,50000.0,0.00015014,15]
[342243579,1731638869163,214.88242996,0.000145,15]
[342243580,1731638869197,1285.11757004,0.000145,15]
[342243581,1731638948185,3000.0,0.00015022,20]
[342243582,1731638968790,40000.0,0.00015022,20]
[342243583,1731638971196,40000.0,0.00015022,20]
[342243584,1731639008537,-1535.22,8.219e-05,2]
[342243590,1731639032421,-250.0,9.298e-05,2]
[342243591,1731639032431,-159.67,9.555e-05,2]
[342243592,1731639032441,-474.24,9.589e-05,2]
[342243607,1731639039867,-525.76,9.589e-05,2]
[342243608,1731639039877,-519.03,9.876e-05,2]
[342243609,1731639039887,-250.0,9.883e-05,2]
[342243610,1731639039900,-365.45,9.89e-05,2]
[342243611,1731639039910,-500.0,9.92e-05,2]
[342243612,1731639039923,-150.0,9.945e-05,2]
[342243613,1731639039932,-500.0,9.973e-05,2]
[342243614,1731639039942,-300.0,9.998e-05,2]
[342243615,1731639039953,-150.01,9.999e-05,2]
[342243616,1731639039962,-1321.93,9.999e-05,2]
[342243617,1731639039972,-505.525,9.999e-05,2]
[342243618,1731639039981,-150.0,9.999e-05,2]
[342243619,1731639039991,-13158.38892077,0.0001,2]
[342243620,1731639040424,-462.48599709,0.0001,2]
[342243621,1731639040436,-1500.86740398,0.0001,2]
[342243622,1731639040681,-608.93407664,0.0001,2]
[342243623,1731639043460,-5912.92000677,0.0001,2]
[342243624,1731639043640,-918.40963422,0.0001,2]
[342243625,1731639043652,-89236.21267263,0.0001,2]
[342243629,1731639046382,-1111.13756184,0.0001,2]
[342243630,1731639046393,-3068.90000001,0.0001,2]
[342243633,1731639113320,40000.0,0.0001551,25]
[342243634,1731639122036,40000.0,0.0001551,25]
[342243635,1731639123517,40000.0,0.0001551,25]
[342243636,1731639124806,40000.0,0.0001551,25]
[342243637,1731639126969,40000.0,0.0001551,25]
[342243638,1731639127928,1000.0,0.00025,60]
[342243639,1731639128974,40000.0,0.0001551,25]
[342243640,1731639133340,40000.0,0.0001551,25]
[342243641,1731639134561,40000.0,0.0001551,25]
[342243642,1731639135818,40000.0,0.0001551,25]
[342243643,1731639137004,40000.0,0.0001551,25]
[342243644,1731639184023,850.0,0.00025,60]
[342243645,1731639191074,850.0,0.00025,60]
[342243646,1731639191294,850.0,0.00025,60]
[342243647,1731639192358,850.0,0.00025,60]
[342243648,1731639193435,850.0,0.00025,60]
[342243649,1731639211456,2000.0,0.00024784,120]
[342243650,1731639215346,850.0,0.00025,60]
[342243651,1731639215964,850.0,0.00025,60]
[342243652,1731639216321,850.0,0.00025,60]
[342243653,1731639217101,850.0,0.00025,60]
[342243654,1731639217492,850.0,0.00025,60]
[342243655,1731639218015,850.0,0.00025,60]
[342243656,1731639230174,850.0,0.00025,60]
[342243657,1731639238782,850.0,0.00025,60]
[342243658,1731639239906,850.0,0.00025,60]
[342243659,1731639244020,850.0,0.00025,60]
[342243660,1731639246606,1199.0,0.00025,60]
[342243661,1731639253147,152.98597967,0.00025,60]
[342243662,1731639297924,40000.0,0.0001551,25]
[342243663,1731639299031,40000.0,0.0001551,25]
[342243664,1731639484784,166.972,0.00022,60]
[342243665,1731639608488,1150.78,8.219e-05,2]
[342243666,1731639798079,500.0,0.00024999,120]
[342243667,1731639814649,266.0,0.00025,60]
[342243668,1731639815858,2000.0,0.00024693,120]
[342243669,1731640077486,-1507.52,0.00016658,30]
[342243670,1731640077524,-1507.52,0.00019242,30]
[342243671,1731640077554,-1500.0,0.0002,30]
[342243672,1731640077582,-1000.0,0.00021,31]
[342243673,1731640077606,-500.0,0.0002175,30]
[342243674,1731640077629,-500.0,0.0002175,30]
[342243675,1731640077652,-500.0,0.0002175,30]
[342243676,1731640077676,-500.0,0.0002175,30]
[342243677,1731640077699,-500.0,0.0002175,30]
[342243678,1731640077723,-500.0,0.0002175,30]
[342243679,1731640077748,-500.0,0.0002175,30]
[342243680,1731640077772,-285.97210944,0.0002175,30]
[342243681,1731640077798,-1507.52,0.00021826,30]
[342243682,1731640077827,-500.0,0.0002375,30]
[342243683,1731640077851,-500.0,0.0002375,30]
[342243684,1731640077874,-500.0,0.0002375,30]
[342243685,1731640077896,-500.0,0.0002375,30]
[342243686,1731640077919,-500.0,0.0002375,30]
[342243687,1731640077943,-500.0,0.0002375,30]
[342243688,1731640077968,-500.0,0.0002375,30]
[342243689,1731640077991,-500.0,0.0002375,30]
[342243690,1731640078020,-500.0,0.0002375,30]
[342243691,1731640078043,-576.54029764,0.0002375,30]
[342243692,1731640078475,-1507.52,0.0002441,30]
[342243693,1731640078507,-1588.0,0.00025,30]
[342243694,1731640078532,-500.0,0.00025,30]
[342243695,1731640078555,-500.0,0.00025,30]
[342243696,1731640078576,-500.0,0.00025,30]
[342243697,1731640078598,-500.0,0.00025,30]
[342243698,1731640078623,-500.0,0.00025,30]
[342243699,1731640078647,-500.0,0.00025,30]
[342243700,1731640078670,-500.0,0.00025,30]
[342243701,1731640078692,-500.0,0.00025,30]
[342243702,1731640078715,-500.0,0.00025,30]
[342243703,1731640078737,-500.60726139,0.00025,30]
[342243704,1731640078762,-200.0,0.00025206,120]
[342243705,1731640078784,-2000.0,0.00025232,120]
[342243706,1731640078808,-250.0,0.000255,60]
[342243707,1731640078830,-253.81682997,0.000255,30]
[342243708,1731640078853,-500.0,0.00025749,120]
[342243709,1731640078876,-2000.0,0.00025771,120]
[342243710,1731640078899,-505.471494,0.00025999,120]
[342243711,1731640078923,-450.0,0.00026,120]
[342243712,1731640078946,-725.7180007,0.00026,30]
[342243713,1731640078971,-200.0,0.00026008,120]
[342243714,1731640078996,-2000.0,0.0002631,120]
[342243715,1731640079021,-500.0,0.00026499,120]
[342243716,1731640079046,-200.0,0.0002681,120]
[342243717,1731640079068,-2000.0,0.00026848,120]
[342243718,1731640079092,-1507.52,0.00026994,30]
[342243719,1731640079117,-644.00198781,0.00027,120]
[342243720,1731640079139,-450.0,0.00027,60]
[342243721,1731640079162,-675.41670793,0.00027,120]
[342243722,1731640079185,-509.08439748,0.00027,120]
[342243723,1731640079207,-2044.09023163,0.00027,60]
[342243724,1731640079230,-2000.0,0.00027,120]
[342243725,1731640079252,-250.0,0.00027,30]
[342243726,1731640079277,-201.37346606,0.00027,30]
[342243727,1731640079301,-500.0,0.00027249,120]
[342243728,1731640079323,-2000.0,0.00027387,120]
[342243729,1731640079348,-200.0,0.00027397,60]
[342243730,1731640079370,-1000.0,0.00027397,60]
[342243731,1731640079397,-250.0,0.000275,30]
[342243732,1731640079421,-250.0,0.000275,30]
[342243733,1731640079446,-200.0,0.00027612,120]
[342243734,1731640079470,-166.938,0.000278,120]
[342243735,1731640079494,-2000.0,0.00027926,120]
[342243736,1731640079518,-500.0,0.00027999,120]
[342243737,1731640079542,-500.0,0.00028,120]
[342243738,1731640079566,-200.0,0.00028413,120]
[342243739,1731640079589,-2000.0,0.00028465,120]
[342243740,1731640079611,-500.0,0.00028749,120]
[342243741,1731640079635,-152.0,0.00028777,30]
[342243742,1731640079659,-500.0,0.00029,120]
[342243743,1731640079682,-1800.0,0.00029,30]
[342243744,1731640079705,-1212.0,0.00029,120]
[342243745,1731640079729,-2000.0,0.00029004,120]
[342243746,1731640079752,-1333.0,0.00029041,120]
[342243747,1731640079777,-152.0,0.00029141,31]
[342243748,1731640079800,-200.0,0.00029215,120]
[342243749,1731640079823,-500.0,0.00029499,120]
[342243750,1731640079847,-152.0,0.00029506,32]
[342243751,1731640079869,-2000.0,0.00029542,120]
[342243752,1731640079893,-1507.52,0.00029578,30]
[342243753,1731640079917,-152.0,0.00029871,33]
[342243754,1731640079950,-500.0,0.0003,120]
[342243755,1731640079975,-83496.45,0.0003,120]
[342243756,1731640080001,-9640.98239507,0.0003,120]
[342243757,1731640080026,-250.0,0.0003,30]
[342243758,1731640080050,-250.25134803,0.0003,30]
[342243759,1731640080075,-1685.0,0.0003,38]
[342243760,1731640080099,-3117.20236322,0.0003,120]
[342243761,1731640080125,-151.0,0.0003,120]
[342243762,1731640080149,-151.0,0.0003,120]
[342243763,1731640080175,-1221.6173039,0.0003,120]
[342243764,1731640080202,-1039.04970718,0.0003,120]
[342243765,1731640080229,-1316.59534981,0.0003,30]
[342243766,1731640080255,-203.48202068,0.0003,30]
[342243767,1731640080289,-1800.0,0.0003,31]
[342243768,1731640080314,-416.0124679,0.0003,120]
[342243769,1731640080341,-522.96849136,0.0003,30]
[342243770,1731640080365,-500.0,0.0003,30]
[342243771,1731640080389,-500.0,0.0003,30]
[342243772,1731640080413,-500.0,0.0003,30]
[342243773,1731640080437,-533.08616821,0.0003,30]
[342243774,1731640080460,-500.0,0.0003,30]
[342243775,1731640080484,-500.0,0.0003,30]
[342243776,1731640080512,-500.0,0.0003,30]
[342243777,1731640080535,-500.0,0.0003,30]
[342243778,1731640080559,-500.0,0.0003,30]
[342243779,1731640080583,-559.686524,0.0003,30]
[342243780,1731640080607,-500.0,0.0003,30]
[342243781,1731640080631,-500.0,0.0003,30]
[342243782,1731640080654,-500.0,0.0003,30]
[342243783,1731640080677,-500.0,0.0003,30]
[342243784,1731640080700,-500.0,0.0003,30]
[342243785,1731640080723,-500.0,0.0003,30]
[342243786,1731640080746,-500.0,0.0003,30]
[342243787,1731640080773,-500.0,0.0003,30]
[342243788,1731640080796,-500.0,0.0003,30]
[342243789,1731640080821,-500.0,0.0003,30]
[342243790,1731640080844,-519.67890879,0.0003,30]
[342243791,1731640080869,-524.59023376,0.0003,30]
[342243792,1731640080892,-518.37608969,0.0003,30]
[342243793,1731640080917,-2200.0,0.0003,30]
[342243794,1731640080941,-2200.0,0.0003,30]
[342243795,1731640080968,-2200.0,0.0003,30]
[342243796,1731640081315,-500.0,0.0003,30]
[342243797,1731640081341,-2200.0,0.0003,30]
[342243798,1731640081365,-500.0,0.0003,30]
[342243799,1731640081390,-2200.0,0.0003,30]
[342243800,1731640081414,-600.0,0.0003,30]
[342243801,1731640081437,-2200.0,0.0003,30]
[342243802,1731640081463,-2200.0,0.0003,30]
[342243803,1731640081487,-2200.0,0.0003,30]
[342243804,1731640081512,-2200.0,0.0003,30]
[342243805,1731640081535,-2200.0,0.0003,30]
[342243806,1731640081560,-2200.0,0.0003,30]
[342243807,1731640081584,-2200.0,0.0003,30]
[342243808,1731640081608,-2200.0,0.0003,30]
[342243809,1731640081632,-4357.39346261,0.0003,30]
[342243810,1731640081656,-550.6646982,0.0003,30]
[342243811,1731640081680,-500.0,0.0003,30]
[342243812,1731640081703,-700.0,0.0003,30]
[342243813,1731640081726,-500.0,0.0003,30]
[342243814,1731640081752,-700.0,0.0003,30]
[342243815,1731640081777,-500.0,0.0003,30]
[342243816,1731640081802,-700.0,0.0003,30]
[342243817,1731640081826,-500.0,0.0003,30]
[342243818,1731640081850,-700.0,0.0003,30]
[342243819,1731640081874,-700.0,0.0003,30]
[342243820,1731640081898,-500.0,0.0003,30]
[342243821,1731640081923,-700.0,0.0003,30]
[342243822,1731640081952,-500.0,0.0003,30]
[342243823,1731640081977,-700.0,0.0003,30]
[342243824,1731640082001,-500.0,0.0003,30]
[342243825,1731640082030,-700.0,0.0003,30]
[342243826,1731640082054,-597.75426394,0.0003,30]
[342243827,1731640082079,-700.0,0.0003,30]
[342243828,1731640082102,-700.0,0.0003,30]
[342243829,1731640082127,-700.0,0.0003,30]
[342243830,1731640082151,-700.0,0.0003,30]
[342243831,1731640082174,-700.0,0.0003,30]
[342243832,1731640082198,-925.78937846,0.0003,30]
[342243833,1731640082221,-500.0,0.0003,30]
[342243834,1731640082245,-500.0,0.0003,30]
[342243835,1731640082271,-500.0,0.0003,30]
[342243836,1731640082294,-500.0,0.0003,30]
[342243837,1731640082320,-500.0,0.0003,30]
[342243838,1731640082344,-500.0,0.0003,30]
[342243839,1731640082367,-500.0,0.0003,30]
[342243840,1731640082391,-500.0,0.0003,30]
[342243841,1731640082415,-500.0,0.0003,30]
[342243842,1731640082439,-500.0,0.0003,30]
[342243843,1731640082461,-500.0,0.0003,30]
[342243844,1731640082484,-500.0,0.0003,30]
[342243845,1731640082509,-500.0,0.0003,30]
[342243846,1731640082533,-671.49120989,0.0003,30]
[342243847,1731640082556,-200.0,0.00030017,120]
[342243848,1731640082580,-2000.0,0.00030081,120]
[342243849,1731640082608,-442.76062616,0.00030136,120]
[342243850,1731640082633,-500.0,0.00030136,120]
[342243851,1731640082657,-500.0,0.00030136,120]
[342243852,1731640082682,-500.0,0.00030136,120]
[342243853,1731640082707,-500.0,0.00030136,120]
[342243854,1731640082731,-162.63704758,0.00030136,120]
[342243855,1731640082754,-159.97219311,0.00030136,120]
[342243856,1731640082783,-603.64,0.00030136,120]
[342243857,1731640082807,-603.64,0.00030136,120]
[342243858,1731640082829,-603.64,0.00030136,120]
[342243859,1731640082853,-603.64,0.00030136,120]
[342243860,1731640082877,-603.64,0.00030136,120]
[342243861,1731640082900,-603.64,0.00030136,120]
[342243862,1731640082924,-603.64,0.00030136,120]
[342243863,1731640082950,-603.64,0.00030136,120]
[342243864,1731640082974,-603.64,0.00030136,120]
[342243865,1731640082998,-603.64,0.00030136,120]
[342243866,1731640083023,-603.64,0.00030136,120]
[342243867,1731640083047,-603.64,0.00030136,120]
[342243868,1731640083070,-603.64,0.00030136,120]
[342243869,1731640083095,-603.64,0.00030136,120]
[342243870,1731640083118,-603.64,0.00030136,120]
[342243871,1731640083142,-603.64,0.00030136,120]
[342243872,1731640083167,-603.64,0.00030136,120]
[342243873,1731640083191,-603.64,0.00030136,120]
[342243874,1731640083214,-603.64,0.00030136,120]
[342243875,1731640083238,-603.64,0.00030136,120]
[342243876,1731640083262,-603.64,0.00030136,120]
[342243877,1731640083287,-603.64,0.00030136,120]
[342243878,1731640083312,-603.64,0.00030136,120]
[342243879,1731640083337,-603.79593474,0.00030136,120]
[342243880,1731640083361,-500.0,0.00030136,120]
[342243881,1731640083384,-500.0,0.00030136,120]
[342243882,1731640083407,-500.0,0.00030136,120]
[342243883,1731640083430,-500.0,0.00030136,120]
[342243884,1731640083454,-500.0,0.00030136,120]
[342243885,1731640083477,-500.0,0.00030136,120]
[342243886,1731640083506,-500.0,0.00030136,120]
[342243887,1731640083531,-500.0,0.00030136,120]
[342243888,1731640083554,-500.0,0.00030136,120]
[342243889,1731640083578,-500.0,0.00030136,120]
[342243890,1731640083600,-500.0,0.00030136,120]
[342243891,1731640083624,-500.0,0.00030136,120]
[342243892,1731640083646,-500.0,0.00030136,120]
[342243893,1731640083669,-500.0,0.00030136,120]
[342243894,1731640083692,-500.0,0.00030136,120]
[342243895,1731640083716,-500.0,0.00030136,120]
[342243896,1731640083740,-433.76701673,0.00030136,120]
[342243897,1731640083764,-510.17,0.00030136,120]
[342243898,1731640083788,-510.17,0.00030136,120]
[342243899,1731640083812,-510.17,0.00030136,120]
[342243900,1731640084097,-510.17,0.00030136,120]
[342243901,1731640084122,-510.17,0.00030136,120]
[342243902,1731640084148,-510.17,0.00030136,120]
[342243903,1731640084172,-510.17,0.00030136,120]
[342243904,1731640084196,-510.17,0.00030136,120]
[342243905,1731640084220,-510.17,0.00030136,120]
[342243906,1731640084243,-510.17,0.00030136,120]
[342243907,1731640084268,-510.17,0.00030136,120]
[342243908,1731640084292,-510.17,0.00030136,120]
[342243909,1731640084315,-510.17,0.00030136,120]
[342243910,1731640084338,-510.17,0.00030136,120]
[342243911,1731640084361,-510.17,0.00030136,120]
[342243912,1731640084385,-510.17,0.00030136,120]
[342243913,1731640084408,-510.17,0.00030136,120]
[342243914,1731640084433,-510.17,0.00030136,120]
[342243915,1731640084456,-510.17,0.00030136,120]
[342243916,1731640084480,-510.17,0.00030136,120]
[342243917,1731640084503,-510.17,0.00030136,120]
[342243918,1731640084529,-510.17,0.00030136,120]
[342243919,1731640084554,-510.17,0.00030136,120]
[342243920,1731640084578,-510.30941407,0.00030136,120]
[342243921,1731640084602,-799.27,0.00030136,120]